bitfinex/quotes_SOLUSD_20241110
["timestamp","ask_amount","ask_price","bid_price","bid_amount"]
[1731210016012,15.3345,202.64,202.51,6.5824]
[1731210016341,10.29258373,202.54,202.51,6.5824]
[1731210016653,41.17033492,202.6,202.51,6.5824]
[1731210016654,10.29258373,202.53,202.51,6.5824]
[1731210016928,10.29258373,202.52,202.46,21.7926]
[1731210017117,10.29258373,202.47,202.41,22.4409]
[1731210017314,41.17033492,202.5,202.41,22.4409]
[1731210017315,10.29258373,202.44,202.41,22.4409]
[1731210017518,10.29258373,202.43,202.41,22.4409]
[1731210018240,10.29258373,202.43,202.41,6.568]
[1731210018533,10.29258373,202.44,202.41,6.568]
[1731210020843,10.29258373,202.45,202.41,6.568]
[1731210021012,10.29258373,202.44,202.41,6.568]
[1731210022133,10.29258373,202.45,202.41,6.568]
[1731210022512,10.29258373,202.44,202.39,20.0]
[1731210023215,10.29258373,202.44,202.37,26.16548373]
[1731210023216,10.29258373,202.44,202.38,20.0]
[1731210023430,41.17033492,202.5,202.38,20.0]
[1731210023431,10.29258373,202.42,202.38,20.0]
[1731210024418,10.29258373,202.42,202.38,23.776884]
[1731210025044,10.29258373,202.42,202.37,15.8729]
[1731210025524,10.29258373,202.44,202.37,26.16548373]
[1731210025836,10.29258373,202.43,202.38,20.0]
[1731210026731,10.29258373,202.43,202.36,10.29258373]
[1731210026935,10.29258373,202.43,202.37,30.29258373]
[1731210027636,5.11428543,202.49,202.38,10.29258373]
[1731210027931,10.29258373,202.45,202.39,20.0]
[1731210028137,10.29258373,202.45,202.39,30.29258373]
[1731210030637,10.29258373,202.46,202.39,30.29258373]
[1731210030834,10.29258373,202.47,202.4,10.29258373]
[1731210031213,15.406365,202.5,202.43,30.29258373]
[1731210031413,5.11378127,202.5,202.44,10.29258373]
[1731210031616,15.406365,202.5,202.43,10.29258373]
[1731210032141,15.406365,202.5,202.44,20.0]
[1731210032337,10.29258373,202.49,202.44,20.0]
[1731210032539,10.29258373,202.47,202.44,20.0]
[1731210032743,10.29258373,202.47,202.41,20.0]
[1731210033222,10.29258373,202.45,202.36,20.0]
[1731210033535,10.29258373,202.45,202.39,20.0]
[1731210034248,10.29258373,202.44,202.37,10.29258373]
[1731210034620,10.29258373,202.44,202.38,20.0]
[1731210034824,10.29258373,202.45,202.38,30.29258373]
[1731210035024,10.29258373,202.45,202.39,10.29258373]
[1731210035724,10.29258373,202.48,202.41,10.29258373]
[1731210037028,5.11378127,202.5,202.35,11.5]
[1731210037029,5.11378127,202.5,202.42,10.29258373]
[1731210037230,10.29258373,202.49,202.42,10.29258373]
[1731210037533,5.11378127,202.5,202.46,10.29258373]
[1731210037845,15.5449,202.58,202.49,10.29258373]
[1731210038015,15.5449,202.58,202.51,10.29258373]
[1731210038221,15.40414195,202.57,202.43,6.4479]
[1731210038528,10.29258373,202.53,202.47,20.0]
[1731210038723,10.29258373,202.54,202.47,30.29258373]
[1731210038944,10.29258373,202.55,202.48,10.29258373]
[1731210040142,10.29258373,202.55,202.49,10.29258373]
[1731210041261,10.29258373,202.54,202.48,10.29258373]
[1731210042451,10.29258373,202.53,202.46,10.29258373]
[1731210042628,10.29258373,202.53,202.47,20.0]
[1731210042949,10.29258373,202.55,202.49,10.29258373]
[1731210043120,10.29258373,202.55,202.45,20.0]
[1731210043121,5.11155822,202.57,202.51,10.29258373]
[1731210043541,5.11155822,202.57,202.54,10.29258373]
[1731210043738,10.29258373,202.62,202.56,10.29258373]
[1731210043944,10.29258373,202.64,202.57,30.29258373]
[1731210044640,10.29258373,202.63,202.57,20.0]
[1731210044947,15.5449,202.65,202.57,20.0]
[1731210045148,10.29258373,202.63,202.57,20.0]
[1731210045443,16.06293802,202.62,202.56,20.0]
[1731210045746,16.06293802,202.6,202.54,20.0]
[1731210046053,16.06293802,202.59,202.54,20.0]
[1731210046230,16.06293802,202.57,202.51,20.0]
[1731210047050,16.06293802,202.57,202.5,38.60693802]
[1731210047432,16.06293802,202.55,202.5,6.4479]
[1731210048646,16.06293802,202.54,202.48,43.776884]
[1731210049531,16.06293802,202.54,202.48,20.0]
[1731210049930,16.06293802,202.51,202.45,22.544]
[1731210050652,16.06293802,202.49,202.45,6.4479]
[1731210050880,16.06293802,202.49,202.42,16.06293802]
[1731210051057,16.06293802,202.48,202.41,16.06293802]
[1731210052151,16.06293802,202.48,202.42,20.0]
[1731210053147,16.06293802,202.49,202.42,16.06293802]
[1731210053751,16.06293802,202.49,202.43,20.0]
[1731210053945,16.06293802,202.48,202.43,20.0]
[1731210055467,16.06293802,202.49,202.44,20.0]
[1731210055942,16.06293802,202.5,202.44,16.06293802]
[1731210056557,5.10931814,202.55,202.44,16.06293802]
[1731210056558,16.06293802,202.51,202.44,16.06293802]
[1731210057242,16.06293802,202.5,202.43,16.06293802]
[1731210057564,16.06293802,202.5,202.44,20.0]
[1731210058771,16.06293802,202.51,202.44,16.06293802]
[1731210059273,16.06293802,202.52,202.45,16.06293802]
[1731210059765,16.06293802,202.51,202.44,16.06293802]
[1731210059952,16.06293802,202.51,202.45,20.0]
[1731210060355,16.06293802,202.52,202.45,36.06293802]
[1731210060549,16.06293802,202.53,202.46,16.06293802]
[1731210060751,16.06293802,202.53,202.47,20.0]
[1731210061064,16.06293802,202.52,202.47,20.0]
[1731210061657,16.06293802,202.5,202.44,20.0]
[1731210062541,16.06293802,202.48,202.42,20.0]
[1731210062765,16.06293802,202.47,202.41,20.0]
[1731210063541,16.06293802,202.47,202.4,38.60693802]
[1731210063946,16.06293802,202.46,202.4,22.544]
[1731210064544,16.06293802,202.45,202.4,22.544]
[1731210064750,16.06293802,202.45,202.4,6.4479]
[1731210064963,16.06293802,202.44,202.4,6.4479]
[1731210070676,16.06293802,202.48,202.41,16.06293802]
[1731210070977,16.06293802,202.5,202.43,16.06293802]
[1731210071669,21.16575554,202.53,202.46,16.06293802]
[1731210071864,16.06293802,202.52,202.46,16.06293802]
[1731210072062,16.06293802,202.51,202.44,32.31093802]
[1731210072777,16.06293802,202.51,202.45,16.06293802]
[1731210073281,16.06293802,202.53,202.46,16.06293802]
[1731210073478,16.06293802,202.53,202.47,16.06293802]
[1731210073676,16.06293802,202.55,202.49,16.06293802]
[1731210074064,16.06293802,202.56,202.49,16.06293802]
[1731210075062,5.10238895,202.57,202.49,16.06293802]
[1731210075274,16.06293802,202.58,202.51,16.06293802]
[1731210075472,16.06293802,202.57,202.51,16.06293802]
[1731210076073,16.06293802,202.57,202.47,20.0]
[1731210076282,16.06293802,202.55,202.48,16.06293802]
[1731210076469,5.09835194,202.6,202.5,16.06293802]
[1731210076664,5.09835194,202.6,202.51,16.06293802]
[1731210076865,16.06293802,202.58,202.51,16.06293802]
[1731210077588,15.8027,202.62,202.52,16.06293802]
[1731210077589,16.06293802,202.59,202.52,16.06293802]
[1731210077767,15.8027,202.62,202.54,16.06293802]
[1731210078088,16.06293802,202.61,202.54,16.06293802]
[1731210078788,16.06293802,202.6,202.53,16.06293802]
[1731210079277,16.06293802,202.59,202.52,16.06293802]
[1731210079473,16.06293802,202.59,202.52,20.0]
[1731210080068,16.06293802,202.57,202.5,16.06293802]
[1731210080387,16.06293802,202.56,202.5,20.0]
[1731210082982,16.06293802,202.57,202.5,20.0]
[1731210083477,16.06293802,202.56,202.5,20.0]
[1731210084580,8.95522645,202.64,202.46,6.318]
[1731210084581,16.06293802,202.52,202.46,6.318]
[1731210084759,16.06293802,202.53,202.46,22.38093802]
[1731210085080,16.06293802,202.53,202.47,16.06293802]
[1731210085791,16.06293802,202.53,202.46,22.38093802]
[1731210086178,16.06293802,202.53,202.47,16.06293802]
[1731210086767,16.06293802,202.54,202.47,16.06293802]
[1731210088187,16.06293802,202.56,202.49,16.06293802]
[1731210088422,3.65630743,202.64,202.52,16.06293802]
[1731210088701,16.06293802,202.58,202.51,16.06293802]
[1731210088988,16.06293802,202.57,202.51,20.0]
[1731210089184,16.06293802,202.56,202.49,16.06293802]
[1731210089587,16.06293802,202.56,202.5,59.83982202]
[1731210089795,16.06293802,202.57,202.5,36.06293802]
[1731210090586,16.06293802,202.56,202.5,36.06293802]
[1731210090879,16.06293802,202.56,202.49,16.06293802]
[1731210091094,16.06293802,202.56,202.5,20.0]
[1731210093290,5.10667856,202.62,202.5,36.06293802]
[1731210093492,16.06293802,202.57,202.5,36.06293802]
[1731210094071,16.06293802,202.59,202.52,16.06293802]
[1731210094601,16.06293802,202.58,202.52,20.0]
[1731210095100,16.06293802,202.57,202.52,23.776884]
[1731210095277,5.10667856,202.62,202.51,30.28527422]
[1731210095481,10.28527422,202.57,202.51,20.0]
[1731210096599,10.28527422,202.56,202.49,10.28527422]
[1731210096898,10.28527422,202.56,202.51,20.0]
[1731210097400,10.28527422,202.56,202.48,20.0]
[1731210097607,10.28527422,202.56,202.5,24.932]
[1731210102680,5.10759111,202.61,202.49,10.28527422]
[1731210102681,10.28527422,202.55,202.49,20.0]
[1731210102893,10.28527422,202.54,202.49,20.0]
[1731210103282,10.28527422,202.53,202.48,20.0]
[1731210104590,10.28527422,202.51,202.47,20.0]
[1731210104893,10.28527422,202.51,202.46,6.318]
[1731210105299,10.28527422,202.49,202.41,6.5863]
[1731210105502,10.28527422,202.46,202.41,6.5863]
[1731210105694,10.28527422,202.45,202.41,6.5863]
[1731210106095,10.28527422,202.45,202.39,26.02727422]
[1731210106096,10.28527422,202.45,202.39,15.742]
[1731210106295,10.28527422,202.45,202.39,30.95927422]
[1731210108387,10.28527422,202.46,202.4,30.28527422]
[1731210108812,10.28527422,202.47,202.4,30.28527422]
[1731210109514,10.28527422,202.46,202.4,30.28527422]
[1731210112415,10.28527422,202.46,202.41,4.932]
[1731210116706,10.28527422,202.47,202.41,4.932]
[1731210118306,10.28527422,202.47,202.41,10.28527422]
[1731210119290,10.28527422,202.48,202.42,10.28527422]
[1731210119501,16.2208,202.5,202.43,10.28527422]
[1731210119695,10.28527422,202.49,202.43,10.28527422]
[1731210120094,10.28527422,202.48,202.42,10.28527422]
[1731210120291,10.28527422,202.48,202.42,15.21727422]
[1731210121107,10.28527422,202.48,202.42,20.0]
[1731210121416,10.28527422,202.48,202.42,30.28527422]
[1731210122494,10.28527422,202.48,202.43,4.932]
[1731210122703,5.10921142,202.51,202.43,10.28527422]
[1731210122912,10.28527422,202.52,202.45,10.28527422]
[1731210123087,10.28527422,202.51,202.44,10.28527422]
[1731210123299,10.28527422,202.48,202.43,20.0]
[1731210124695,10.28527422,202.49,202.43,20.0]
[1731210124896,5.10760832,202.54,202.44,10.28527422]
[1731210125104,10.28527422,202.52,202.45,10.28527422]
[1731210125297,10.28527422,202.51,202.45,10.28527422]
[1731210126112,10.28527422,202.51,202.44,10.28527422]
[1731210126313,5.10760832,202.54,202.44,10.28527422]
[1731210126620,10.28527422,202.51,202.44,10.28527422]
[1731210132509,10.28527422,202.5,202.44,10.28527422]
[1731210133106,5.10760832,202.54,202.44,10.28527422]
[1731210133306,10.28527422,202.51,202.44,10.28527422]
[1731210134802,10.28527422,202.51,202.44,15.21727422]
[1731210135226,10.28527422,202.5,202.44,20.0]
[1731210135424,10.28527422,202.49,202.44,20.0]
[1731210135721,10.28527422,202.45,202.39,15.742]
[1731210137103,10.28527422,202.45,202.4,20.0]
[1731210137422,10.28527422,202.46,202.4,20.0]
[1731210138803,10.28527422,202.46,202.39,30.95927422]
[1731210139230,10.28527422,202.46,202.4,20.0]
[1731210140626,10.28527422,202.46,202.4,30.28527422]
[1731210141728,10.28527422,202.46,202.4,20.0]
[1731210142605,10.28527422,202.46,202.41,4.932]
[1731210144716,10.28527422,202.46,202.4,24.932]
[1731210145126,10.28527422,202.46,202.4,35.21727422]
[1731210150632,10.28527422,202.46,202.4,20.0]
[1731210150808,10.28527422,202.46,202.4,35.21727422]
[1731210152424,10.28527422,202.47,202.4,35.21727422]
[1731210155307,10.28527422,202.47,202.4,30.28527422]
[1731210155527,10.28527422,202.47,202.4,35.21727422]
[1731210157929,10.28527422,202.45,202.38,6.5734]
[1731210158129,10.28527422,202.43,202.37,15.21727422]
[1731210160035,15.8499,202.48,202.38,10.28527422]
[1731210160036,10.28527422,202.44,202.38,10.28527422]
[1731210162822,15.8499,202.48,202.39,4.932]
[1731210163138,10.28527422,202.44,202.39,4.932]
[1731210163915,15.8499,202.48,202.35,20.0]
[1731210164117,10.28527422,202.43,202.36,38.99415822]
[1731210164331,10.28527252,202.43,202.36,34.06215822]
[1731210165243,10.28527252,202.43,202.36,38.99415822]
[1731210166635,10.28527252,202.43,202.37,10.28527422]
[1731210167746,10.28527422,202.44,202.38,10.28527422]
[1731210168124,15.8499,202.48,202.37,20.0]
[1731210168328,10.28527422,202.48,202.42,10.28527422]
[1731210168529,15.40260495,202.49,202.43,10.28527422]
[1731210168824,10.28527422,202.52,202.46,10.28527422]
[1731210169240,5.11592868,202.53,202.48,10.28527422]
[1731210169641,5.11592868,202.53,202.49,10.28527422]
[1731210169843,5.11592868,202.53,202.41,16.2885]
[1731210170146,5.11592868,202.53,202.49,10.28527422]
[1731210170742,15.4012029,202.53,202.47,10.28527422]
[1731210170942,5.11592868,202.53,202.44,20.0]
[1731210171152,5.11592868,202.53,202.48,10.28527422]
[1731210172836,15.4012029,202.53,202.47,10.28527422]
[1731210173640,15.4012029,202.53,202.46,23.776884]
[1731210173849,5.11592868,202.53,202.47,30.28527422]
[1731210176248,5.11592868,202.53,202.48,10.28527422]
[1731210176857,5.11592868,202.53,202.47,20.0]
[1731210177350,5.11592868,202.53,202.5,10.28527422]
[1731210178044,5.11592868,202.53,202.48,23.776884]
[1731210178254,5.11592868,202.53,202.49,10.28527422]
[1731210180242,5.11592868,202.53,202.48,34.06215822]
[1731210181549,10.28527422,202.54,202.48,34.06215822]
[1731210181755,10.28527422,202.54,202.48,10.28527422]
[1731210181937,10.28527422,202.49,202.42,10.28527422]
[1731210182246,10.28527422,202.5,202.43,10.28527422]
[1731210182838,10.28527422,202.5,202.45,4.932]
[1731210183651,10.28527422,202.5,202.44,10.28527422]
[1731210183954,10.28527422,202.5,202.44,4.932]
[1731210184132,10.28527422,202.5,202.44,24.932]
[1731210186042,24.002374,202.57,202.44,24.932]
[1731210186242,10.28527422,202.5,202.44,15.21727422]
[1731210186839,10.28527422,202.5,202.43,15.21727422]
[1731210188638,10.28527422,202.49,202.43,4.932]
[1731210189536,10.28527422,202.48,202.43,4.932]
[1731210192554,10.28527422,202.49,202.43,4.932]
[1731210193159,10.28527422,202.48,202.43,4.932]
[1731210193357,10.28527422,202.47,202.4,6.5828]
[1731210193545,10.28527422,202.44,202.38,10.28527422]
[1731210193859,10.28527422,202.43,202.37,10.28527422]
[1731210194549,10.28527422,202.43,202.38,4.932]
[1731210194747,48.49145262,202.5,202.35,6.3702]
[1731210194748,10.28527422,202.39,202.35,6.3702]
[1731210194937,10.28527422,202.38,202.32,16.2986]
[1731210195144,10.28527422,202.38,202.32,26.58387422]
[1731210195548,10.28527422,202.37,202.32,21.2306]
[1731210195750,10.28527422,202.37,202.3,6.3702]
[1731210195956,10.28527422,202.35,202.3,6.3702]
[1731210196147,10.28527422,202.33,202.27,16.2986]
[1731210196352,10.28527422,202.33,202.27,26.58387422]
[1731210196543,10.28527422,202.33,202.28,4.932]
[1731210196744,10.28527422,202.33,202.27,4.932]
[1731210197149,10.28527422,202.3,202.25,6.3702]
[1731210197354,41.24109688,202.4,202.25,6.3702]
[1731210197355,10.28527422,202.29,202.25,6.3702]
[1731210197558,10.28527422,202.3,202.25,6.3702]
[1731210198144,10.28527422,202.3,202.22,15.2742]
[1731210198145,10.28527422,202.28,202.22,25.55947422]
[1731210198769,10.28527422,202.3,202.24,10.28527422]
[1731210198967,9.78527422,202.3,202.24,10.28527422]
[1731210199257,9.78527422,202.3,202.25,23.776884]
[1731210200669,10.28527422,202.31,202.25,23.776884]
[1731210200870,10.28527422,202.32,202.25,34.06215822]
[1731210201159,10.28527422,202.31,202.25,10.28527422]
[1731210204562,10.28527422,202.32,202.25,10.28527422]
[1731210205543,5.13218688,202.37,202.28,10.28527422]
[1731210205749,10.28527422,202.34,202.28,10.28527422]
[1731210206663,10.28527422,202.33,202.27,10.28527422]
[1731210207266,10.28527422,202.34,202.28,10.28527422]
[1731210207662,10.28527422,202.32,202.26,23.776884]
[1731210207859,10.28527422,202.34,202.27,10.28527422]
[1731210209248,10.28527422,202.34,202.28,10.28527422]
[1731210209648,10.28527422,202.29,202.24,20.0]
[1731210209868,5.33218688,202.37,202.25,10.28527422]
[1731210209869,10.28527422,202.31,202.25,10.28527422]
[1731210210252,10.28527422,202.36,202.3,10.28527422]
[1731210210460,15.4174611,202.37,202.3,10.28527422]
[1731210211355,5.13218688,202.37,202.32,10.28527422]
[1731210211574,5.13218688,202.37,202.35,10.28527422]
[1731210211777,15.9744,202.42,202.34,10.28527422]
[1731210212085,5.13320619,202.41,202.37,10.28527422]
[1731210212376,15.9744,202.42,202.37,10.28527422]
[1731210212880,26.25967422,202.42,202.35,10.28527422]
[1731210213254,26.25967422,202.42,202.32,20.0]
[1731210213255,10.28527422,202.39,202.32,20.0]
[1731210213460,10.28527422,202.38,202.32,10.28527422]
[1731210213655,10.28527422,202.38,202.31,10.28527422]
[1731210213957,10.28527422,202.38,202.31,15.21727422]
[1731210214369,10.28527422,202.36,202.3,10.28527422]
[1731210214673,10.28527422,202.36,202.3,15.21727422]
[1731210215174,10.28527422,202.36,202.3,10.28527422]
[1731210215670,10.28527422,202.32,202.25,15.4584]
[1731210215990,10.28527422,202.35,202.28,16.65587422]
[1731210216353,10.28527422,202.35,202.28,6.3706]
[1731210216549,10.28527422,202.35,202.28,16.65587422]
[1731210216750,10.28527422,202.35,202.29,4.932]
[1731210217884,10.28527422,202.35,202.28,16.65587422]
[1731210218461,10.28527422,202.36,202.3,10.28527422]
[1731210218657,10.28527422,202.35,202.29,10.28527422]
[1731210218862,10.28527422,202.36,202.3,10.28527422]
[1731210220174,10.28527422,202.37,202.31,10.28527422]
[1731210221572,3.81618166,202.41,202.32,10.28527422]
[1731210221781,10.28527422,202.4,202.34,10.28527422]
[1731210223278,10.28527422,202.39,202.31,23.776884]
[1731210223458,10.28527422,202.39,202.32,10.28527422]
[1731210223774,21.11240098,202.42,202.3,20.0]
[1731210223775,10.28527422,202.36,202.3,20.0]
[1731210224278,10.28527422,202.37,202.3,10.28527422]
[1731210224778,10.28527422,202.37,202.31,10.28527422]
[1731210224966,10.28527422,202.36,202.29,20.0]
[1731210225169,10.28527422,202.35,202.29,30.28527422]
[1731210225367,10.28527422,202.36,202.3,10.28527422]
[1731210225962,10.28527422,202.37,202.3,10.28527422]
[1731210226981,10.28527422,202.36,202.3,10.28527422]
[1731210227583,10.28527422,202.36,202.29,20.0]
[1731210227884,10.28527422,202.34,202.29,4.936]
[1731210228056,10.28527422,202.34,202.28,6.3706]
[1731210229865,10.28527422,202.34,202.28,16.65587422]
[1731210230064,10.28527422,202.34,202.28,6.3706]
[1731210230275,10.28527422,202.36,202.29,15.22127422]
[1731210230486,21.21240098,202.42,202.31,10.28527422]
[1731210230672,10.28527422,202.39,202.32,10.28527422]
[1731210231083,10.28527422,202.38,202.31,10.28527422]
[1731210232371,10.28527422,202.38,202.32,4.936]
[1731210232574,10.28527422,202.37,202.32,4.936]
[1731210233078,10.28527422,202.35,202.29,4.936]
[1731210233264,10.28527422,202.34,202.29,4.936]
[1731210234687,10.28527422,202.35,202.29,4.936]
[1731210235569,10.28527422,202.35,202.28,16.65587422]
[1731210235780,10.28527422,202.35,202.28,21.59187422]
[1731210237284,10.28527422,202.34,202.28,6.3706]
[1731210239179,10.28527422,202.34,202.28,16.65587422]
[1731210239381,5.14279029,202.39,202.29,10.28527422]
[1731210239781,10.28527422,202.35,202.29,10.28527422]
[1731210240480,5.24279029,202.39,202.29,10.28527422]
[1731210240680,10.28527422,202.35,202.29,10.28527422]
[1731210241784,5.14279029,202.39,202.3,10.28527422]
[1731210241984,5.14279029,202.39,202.32,10.28527422]
[1731210242183,15.42806451,202.39,202.32,10.28527422]
[1731210242491,10.28527422,202.37,202.28,6.3706]
[1731210242789,10.28527422,202.37,202.3,10.28527422]
[1731210243588,10.28527422,202.33,202.28,6.3706]
[1731210243780,10.28527422,202.32,202.28,6.3706]
[1731210244374,0.32549,202.38,202.28,6.3706]
[1731210244375,10.28527422,202.33,202.28,6.3706]
[1731210245594,5.1382292,202.36,202.28,6.3706]
[1731210245595,10.28527422,202.32,202.28,6.3706]
[1731210245766,10.28527422,202.31,202.25,15.4584]
[1731210245999,10.28527422,202.32,202.26,10.28527422]
[1731210246293,5.1382292,202.36,202.28,10.28527422]
[1731210246595,15.42350342,202.36,202.29,10.28527422]
[1731210247277,10.28527422,202.38,202.31,16.82647422]
[1731210247476,10.28527422,202.39,202.32,10.28527422]
[1731210247679,15.42371077,202.39,202.32,10.28527422]
[1731210247989,10.28527422,202.37,202.31,6.5412]
[1731210248378,10.28527422,202.36,202.31,6.5412]
[1731210251373,5.13843655,202.39,202.35,10.28527422]
[1731210251599,5.13843655,202.39,202.36,10.28527422]
[1731210251891,19.14313572,202.47,202.37,10.28527422]
[1731210252094,5.14136139,202.43,202.37,10.28527422]
[1731210252303,10.28527422,202.44,202.37,10.28527422]
[1731210252488,10.28527422,202.43,202.36,10.28527422]
[1731210252694,15.42723567,202.43,202.36,10.28527422]
[1731210252997,15.42723567,202.43,202.35,10.28527422]
[1731210253381,10.28527422,202.42,202.35,10.28527422]
[1731210254390,10.28527422,202.44,202.37,10.28527422]
[1731210254596,10.28527422,202.43,202.36,10.28527422]
[1731210255789,5.14233873,202.46,202.33,23.776884]
[1731210255790,15.42761295,202.46,202.38,16.82647422]
[1731210256177,10.28527422,202.45,202.38,16.82647422]
[1731210256696,10.28527422,202.45,202.38,6.5412]
[1731210256883,10.28527422,202.44,202.38,6.5412]
[1731210257085,10.28527422,202.41,202.38,6.5412]
[1731210257503,10.28527422,202.39,202.33,6.4032]
[1731210264307,10.28527422,202.34,202.33,6.4032]
[1731210264479,0.1,202.42,202.27,22.395]
[1731210264684,10.28527422,202.35,202.29,10.28527422]
[1731210264884,10.28527422,202.34,202.28,10.28527422]
[1731210265189,5.13756491,202.41,202.28,10.28527422]
[1731210265389,10.28527422,202.35,202.28,10.28527422]
[1731210266216,5.13756491,202.41,202.31,10.28527422]
[1731210266506,10.28527422,202.38,202.32,10.28527422]
[1731210267095,5.13756491,202.41,202.33,10.28527422]
[1731210267305,10.28527422,202.4,202.34,20.0]
[1731210269708,10.28527422,202.39,202.34,20.0]
[1731210270707,5.13530894,202.44,202.36,10.28527422]
[1731210270885,10.28527422,202.43,202.37,10.28527422]
[1731210272513,10.28527422,202.43,202.36,30.28527422]
[1731210273112,15.42058316,202.44,202.36,30.28527422]
[1731210273415,5.13530894,202.44,202.38,6.4032]
[1731210273709,10.28527422,202.45,202.38,16.68847422]
[1731210274011,10.28527422,202.44,202.38,6.4032]
[1731210274303,10.28527422,202.42,202.38,6.4032]
[1731210274612,10.28527422,202.4,202.38,6.4032]
[1731210275721,10.28527422,202.39,202.35,15.9918]
[1731210276408,10.28527422,202.37,202.35,15.9918]
[1731210276612,10.28527422,202.37,202.33,6.4032]
[1731210276796,10.28527422,202.36,202.33,6.4032]
[1731210277198,10.28527422,202.35,202.33,6.4032]
[1731210277396,10.28527422,202.36,202.33,6.4032]
[1731210278412,10.28527422,202.34,202.33,6.4032]
[1731210279110,10.28527422,202.34,202.3,15.9918]
[1731210281018,10.28527422,202.33,202.3,15.9918]
[1731210282310,10.28527422,202.33,202.31,4.936]
[1731210282514,10.28527422,202.33,202.3,15.9918]
[1731210283117,10.28527422,202.33,202.28,6.4736]
[1731210283991,10.28527422,202.34,202.28,6.4736]
[1731210284611,10.28527422,202.34,202.28,16.75887422]
[1731210287497,10.28527422,202.34,202.28,6.4736]
[1731210288610,10.28527422,202.35,202.29,10.28527422]
[1731210288793,5.12920467,202.39,202.28,11.4096]
[1731210288794,10.28527422,202.34,202.28,21.69487422]
[1731210292715,10.28527422,202.34,202.28,6.4736]
[1731210293811,10.28527422,202.33,202.28,6.4736]
[1731210294194,10.28527422,202.35,202.29,10.28527422]
[1731210294700,10.28527422,202.37,202.31,10.28527422]
[1731210296405,5.12920467,202.39,202.31,10.28527422]
[1731210296624,10.28527422,202.37,202.3,15.22127422]
[1731210296920,10.28527422,202.38,202.31,10.28527422]
[1731210297096,10.28527422,202.38,202.32,20.0]
[1731210300018,10.28527422,202.41,202.34,10.28527422]
[1731210300224,20.23774898,202.42,202.3,23.776884]
[1731210300225,5.12824898,202.42,202.36,10.28527422]
[1731210300520,10.28527422,202.43,202.36,16.40447422]
[1731210300827,10.28527422,202.4,202.36,6.1192]
[1731210301033,10.28527422,202.41,202.36,6.1192]
[1731210302211,10.28527422,202.39,202.36,6.1192]
[1731210303425,20.76999961,202.47,202.36,6.1192]
[1731210303426,20.86999961,202.47,202.36,6.1192]
[1731210303621,10.28527422,202.39,202.36,6.1192]
[1731210304012,10.28527422,202.38,202.29,26.1192]
[1731210304319,10.28527422,202.38,202.33,20.0]
[1731210304929,10.28527422,202.38,202.32,20.0]
[1731210305116,10.28527422,202.36,202.32,20.0]
[1731210305323,10.28527422,202.34,202.29,6.1192]
[1731210305507,10.28527422,202.33,202.29,6.1192]
[1731210306726,10.28527422,202.32,202.29,6.1192]
[1731210308115,10.28527422,202.36,202.29,16.40447422]
[1731210308320,10.28527422,202.38,202.31,10.28527422]
[1731210308723,15.5429,202.45,202.33,10.28527422]
[1731210308930,10.28527422,202.4,202.34,10.28527422]
[1731210310125,10.28527422,202.39,202.33,15.22127422]
[1731210310639,10.28527422,202.39,202.34,20.0]
[1731210311129,5.12372489,202.44,202.35,34.06215822]
[1731210311441,10.28527422,202.42,202.36,20.0]
[1731210312830,10.28527422,202.42,202.37,4.936]
[1731210314333,10.28527422,202.41,202.36,20.0]
[1731210314713,10.28527422,202.4,202.32,20.0]
[1731210314917,10.28527422,202.39,202.32,10.28527422]
[1731210315133,10.28527422,202.37,202.31,23.776884]
[1731210315411,15.5429,202.45,202.3,10.28527422]
[1731210315412,10.28527422,202.35,202.3,23.776884]
[1731210315726,41.14109688,202.4,202.29,6.1192]
[1731210315727,10.28527422,202.33,202.29,6.1192]
[1731210317544,10.28527422,202.32,202.25,21.55717422]
[1731210318538,10.28527422,202.31,202.26,23.776884]
[1731210318723,10.28527422,202.32,202.26,23.776884]
[1731210320621,10.28527422,202.33,202.26,34.06215822]
[1731210321134,10.28527422,202.31,202.25,6.3359]
[1731210321349,10.28527422,202.3,202.25,6.3359]
[1731210322537,10.28527422,202.32,202.25,16.62117422]
[1731210322745,10.28527422,202.32,202.26,10.28527422]
[1731210323032,10.28527422,202.32,202.26,8.78527422]
[1731210323821,10.28527422,202.31,202.25,16.62117422]
[1731210325636,10.28527422,202.32,202.25,16.62117422]
[1731210326017,10.28527422,202.31,202.2,43.776884]
[1731210326240,10.28527422,202.31,202.24,10.28527422]
[1731210326832,10.28527422,202.31,202.25,10.28527422]
[1731210327034,10.28527422,202.31,202.23,4.936]
[1731210327340,10.28527422,202.3,202.24,10.28527422]